bitfinex/quotes_ETHUSD_20260113
["timestamp","ask_amount","ask_price","bid_price","bid_amount"]
[1768330078328,0.93865455,3204.1,3202.7,3.1223463]
[1768330078524,0.93865455,3203.9,3202.1,0.00080016]
[1768330078724,0.93865455,3203.8,3202.2,0.62468963]
[1768330080558,0.93865455,3204.4,3203.3,0.001]
[1768330080758,0.245,3204.3,3203.3,0.001]
[1768330081295,4.30437426,3204.4,3203.3,0.001]
[1768330081458,1.18365455,3204.4,3203.3,0.001]
[1768330081825,4.3043949,3204.4,3203.3,0.001]
[1768330082567,0.245,3204.4,3203.3,0.001]
[1768330083794,0.247,3204.5,3203.3,0.001]
[1768330084280,0.002,3204.5,3203.3,0.001]
[1768330084437,0.247,3204.5,3203.3,0.001]
[1768330084639,0.002,3204.5,3203.3,0.001]
[1768330084838,0.002,3204.5,3203.4,6.1670741]
[1768330085101,0.66342083,3204.6,3203.5,0.61680741]
[1768330085228,0.66342083,3204.6,3203.3,0.001]
[1768330085229,1.26261065,3204.4,3203.3,0.001]
[1768330085434,0.002,3204.8,3203.5,5.9220741]
[1768330085633,0.002,3204.8,3203.6,15.47604362]
[1768330085931,0.96201574,3205.0,3203.6,15.47604362]
[1768330086130,0.03900277,3204.9,3203.7,2.13981177]
[1768330086328,7.20231909,3205.0,3203.6,14.5]
[1768330086531,7.20231909,3205.0,3203.3,0.001]
[1768330086750,4.08214054,3205.0,3203.3,9.36634198]
[1768330086950,6.24030335,3205.0,3203.3,23.86634198]
[1768330087152,0.245,3205.0,3203.4,0.97604362]
[1768330087344,0.245,3205.0,3203.5,2.48423856]
[1768330087738,0.245,3205.0,3203.4,0.97604362]
[1768330087943,0.245,3205.0,3203.5,14.745]
[1768330088746,3.12022215,3204.9,3203.6,6.24297664]
[1768330089935,6.2404443,3204.9,3203.6,6.24297664]
[1768330090772,3.12022215,3204.9,3203.6,6.24297664]
[1768330091069,3.12022215,3204.9,3203.8,6.24258692]
[1768330091472,0.03900399,3204.8,3203.7,3.74563255]
[1768330091640,6.2404443,3204.9,3203.7,6.24272578]
[1768330092364,6.2404443,3204.9,3203.7,3.12133489]
[1768330092930,0.245,3205.0,3203.7,3.12133489]
[1768330092931,3.3651641,3205.0,3203.7,3.12133489]
[1768330093130,6.4853282,3205.0,3203.7,6.24272578]
[1768330093564,6.4853282,3205.0,3203.7,3.12133489]
[1768330093873,9.6054923,3205.0,3203.7,3.12133489]
[1768330094169,0.03900277,3204.9,3203.7,3.12133489]
[1768330094336,3.3651641,3205.0,3203.7,6.24272578]
[1768330094662,6.4853282,3205.0,3203.7,6.24272578]
[1768330094966,6.4853282,3205.0,3203.6,6.24397664]
[1768330095931,3.3651641,3205.0,3203.6,9.36546496]
[1768330096272,3.3651641,3205.0,3203.8,0.94317377]
[1768330096273,0.245,3205.0,3203.8,0.94317377]
[1768330096965,3.36517359,3205.0,3203.9,6.24239208]
[1768330097167,3.36517359,3205.0,3204.0,0.245]
[1768330097467,0.245,3205.0,3204.0,0.245]
[1768330097767,0.245,3205.0,3204.0,1.18817377]
[1768330097937,0.245,3205.4,3205.0,0.02169304]
[1768330098540,0.245,3205.4,3204.0,0.94317377]
[1768330098858,0.92590872,3205.3,3204.1,0.245]
[1768330099049,4.08483795,3205.2,3204.2,0.245]
[1768330099570,6.27885934,3205.2,3204.2,0.245]
[1768330099736,6.23986022,3205.2,3204.1,3.12095946]
[1768330099932,6.23986022,3205.2,3204.1,3.12096753]
[1768330100171,6.23986022,3205.2,3204.0,3.12106665]
[1768330100383,6.23986022,3205.2,3204.0,3.36606665]
[1768330100565,6.23986022,3205.2,3204.0,0.245]
[1768330100767,9.39878945,3205.2,3203.9,0.245]
[1768330101080,7.16576894,3205.2,3203.6,0.001]
[1768330101288,7.16576894,3205.2,3203.7,0.245]
[1768330101442,7.16576894,3205.2,3203.8,3.12129346]
[1768330101647,0.92590872,3205.1,3203.6,0.001]
[1768330101948,0.92590872,3205.1,3203.8,3.12128882]
[1768330102365,0.92590872,3205.1,3203.8,3.36628882]
[1768330102768,0.92590872,3205.1,3203.8,6.48758228]
[1768330103173,3.11983277,3205.3,3203.9,0.94317377]
[1768330103461,0.00080032,3205.7,3204.1,0.94317377]
[1768330104250,6.23969895,3205.7,3204.1,0.94317377]
[1768330104452,3.12024381,3205.7,3204.1,0.94317377]
[1768330104667,6.23969895,3205.7,3204.2,0.245]
[1768330104869,6.23969895,3205.7,3204.2,0.46933787]
[1768330105068,3.12024381,3205.7,3204.3,0.94317377]
[1768330105269,0.00080032,3205.7,3204.5,0.94317377]
[1768330106284,0.002,3205.4,3204.5,0.94317377]
[1768330106591,0.002,3205.4,3204.6,0.245]
[1768330106768,0.002,3205.4,3204.6,0.85487397]
[1768330107083,0.002,3205.4,3204.6,0.60987397]
[1768330107286,0.002,3205.4,3204.8,3.12031952]
[1768330107790,0.002,3205.4,3204.8,6.24063904]
[1768330107986,0.002,3205.4,3204.7,3.36540499]
[1768330108189,0.002,3205.4,3204.2,0.22433787]
[1768330108365,0.002,3205.4,3204.7,0.245]
[1768330108573,0.002,3205.4,3204.7,3.3654048]
[1768330108896,0.002,3205.4,3204.7,3.1204048]
[1768330109493,0.002,3205.4,3204.7,6.24082168]
[1768330109657,0.002,3205.4,3204.7,3.76898697]
[1768330109857,0.002,3205.4,3204.7,3.1204048]
[1768330110678,0.002,3205.4,3204.7,3.3654048]
[1768330111094,0.00280032,3205.7,3204.9,5.9220741]
[1768330111302,0.002,3205.9,3204.7,6.24082168]
[1768330111596,0.002,3205.9,3205.3,0.0008004]
[1768330114090,0.002,3205.9,3205.3,0.62488593]
[1768330114881,0.002,3206.1,3205.3,0.62488593]
[1768330115500,0.002,3206.1,3205.4,6.23947088]
[1768330115885,0.002,3206.1,3205.4,3.11973544]
[1768330116214,0.002,3206.2,3205.4,6.48447088]
[1768330116725,0.002,3206.2,3205.4,7.80819363]
[1768330117026,3.12161416,3206.6,3205.5,0.245]
[1768330117525,0.003,3206.6,3205.6,6.2390816]
[1768330117729,0.003,3206.6,3205.6,7.15927722]
[1768330117890,0.003,3206.6,3205.7,0.245]
[1768330118079,0.003,3206.6,3205.8,0.245]
[1768330118285,0.003,3206.6,3205.8,1.16519562]
[1768330118682,0.002,3207.0,3206.2,0.92019562]
[1768330118901,0.002,3207.0,3206.3,1.16519562]
[1768330119108,0.002,3207.0,3206.4,0.92019562]
[1768330119314,0.96351003,3207.5,3206.5,0.245]
[1768330119505,0.96351003,3207.5,3205.9,0.92019562]
[1768330119506,0.002,3206.1,3205.9,0.92019562]
[1768330119791,3.15678548,3207.4,3205.8,6.23869236]
[1768330119792,6.23762622,3207.4,3206.0,0.7158888]
[1768330119991,6.23762622,3207.4,3205.8,9.35803854]
[1768330119992,0.96151003,3207.3,3205.8,6.23869236]
[1768330120200,0.96151003,3207.2,3205.8,6.23869236]
[1768330120400,0.96151003,3207.2,3205.9,0.245]
[1768330120690,6.23762622,3207.4,3205.9,0.245]
[1768330120909,6.23762622,3207.4,3205.9,1.16519562]
[1768330121113,6.23762622,3207.4,3206.0,1.05232342]
[1768330121432,6.23762622,3207.4,3206.0,1.29732342]
[1768330121899,0.002,3207.4,3206.2,0.92019562]
[1768330122822,0.002,3207.4,3206.3,0.92019562]
[1768330123120,0.002,3207.4,3206.3,1.88102604]
[1768330123324,0.002,3207.4,3206.3,0.71583042]
[1768330123522,0.002,3207.4,3206.5,0.92019562]
[1768330123914,0.002,3207.4,3206.6,4.03876357]
[1768330124289,0.002,3207.4,3206.7,0.92019562]
[1768330124609,1e-08,3207.5,3206.9,0.92019562]
[1768330124809,1e-08,3207.5,3207.0,1.16519562]
[1768330125014,1e-08,3207.5,3207.1,0.92019562]
[1768330125324,6.23169438,3209.4,3208.5,0.00080008]
[1768330125510,0.00080008,3208.9,3207.8,0.92019562]
[1768330126229,3.17407794,3209.5,3208.5,0.00080016]
[1768330126790,6.28985437,3209.5,3208.5,0.00080016]
[1768330127024,9.4056308,3209.5,3208.5,0.00080016]
[1768330127195,0.245,3209.4,3208.5,0.00080016]
[1768330127599,0.98690639,3211.9,3209.1,0.05]
[1768330127793,0.96151003,3210.8,3210.0,0.99202529]
[1768330128001,0.96151003,3210.8,3210.0,6.47544689]
[1768330128187,0.96151003,3211.3,3210.1,0.245]
[1768330128393,0.96151003,3211.3,3210.2,0.245]
[1768330128696,0.96151003,3210.8,3209.6,3.11565207]
[1768330129023,0.91151003,3210.8,3209.8,0.245]
[1768330129335,0.0225206,3210.9,3209.9,0.245]
[1768330129543,0.0225206,3210.9,3210.0,6.4755102]
[1768330129695,0.0225206,3210.9,3210.0,0.245]
[1768330129696,0.96151003,3210.8,3210.0,0.245]
[1768330130022,0.96151003,3210.6,3209.5,0.16101549]
[1768330130428,0.96151003,3210.6,3209.6,3.36063935]
[1768330131148,0.96151003,3210.6,3209.5,0.16101549]
[1768330131436,0.96151003,3210.6,3209.6,3.36062563]
[1768330131615,0.002,3210.3,3209.5,0.15801549]
[1768330131817,0.96351003,3210.3,3209.5,1.93540937]
[1768330132131,0.96351003,3210.3,3209.5,0.07743704]
[1768330132729,0.96351003,3210.3,3208.5,5.92287426]
[1768330132926,0.96151003,3210.1,3208.5,3.11751803]
[1768330133229,0.96151003,3210.1,3208.5,0.00080016]
[1768330133807,0.96151003,3209.9,3208.5,0.00080016]
[1768330134011,0.96151003,3209.7,3208.6,0.31176159]
[1768330134518,0.96151003,3209.7,3208.6,0.55676159]
[1768330134717,0.96151003,3209.7,3208.6,0.31176159]
[1768330135234,0.96151003,3209.7,3208.5,0.00080016]
[1768330135840,0.96151003,3209.5,3208.5,0.00080016]
[1768330136411,0.96151003,3210.0,3208.6,0.245]
[1768330136614,0.96151003,3210.0,3209.0,5.9220741]
[1768330136817,0.002,3210.3,3209.0,5.9220741]
[1768330136998,0.002,3210.3,3209.1,0.59220741]
[1768330137205,0.002,3210.3,3209.2,0.245]
[1768330137814,0.002,3210.3,3208.5,0.00080016]
[1768330138122,0.002,3210.3,3209.1,5.9220741]
[1768330138358,0.002,3210.3,3209.2,0.245]
[1768330138655,0.002,3210.3,3209.3,0.86170741]
[1768330139010,0.96351003,3210.3,3209.3,0.245]
[1768330139310,0.96151003,3210.1,3208.5,0.24580016]
[1768330139507,0.96151003,3210.1,3208.5,0.00080016]
[1768330139737,0.96151003,3210.1,3208.5,0.24580016]
[1768330139939,3.11526479,3210.0,3208.6,6.23324814]
[1768330140252,3.11526479,3210.0,3208.7,0.64790483]
[1768330140405,4.07670515,3210.1,3208.7,0.64790483]
[1768330140610,3.11701735,3210.3,3208.7,0.64790483]
[1768330141007,7.19354473,3210.3,3208.7,0.64790483]
[1768330141309,0.96151003,3210.2,3208.5,0.00080016]
[1768330141838,0.96151003,3210.0,3208.5,0.00080016]
[1768330142037,0.96151003,3209.8,3208.5,0.00080016]
[1768330142236,0.001,3209.5,3208.5,0.00080016]
[1768330142658,0.96251003,3209.5,3208.5,0.00080016]
[1768330142849,0.96151003,3209.4,3208.5,0.00080016]
[1768330143650,0.96151003,3209.4,3208.8,0.001]
[1768330144049,7.19339859,3209.3,3208.8,0.001]
[1768330144376,0.96151003,3209.2,3208.8,0.001]
[1768330144764,0.96151003,3209.2,3208.5,0.00080016]
[1768330146083,0.001,3209.5,3208.5,0.00080016]
[1768330146254,3.1167571,3209.5,3208.5,0.00080016]
[1768330146444,0.001,3209.5,3208.5,0.00080016]
[1768330146763,3.11677602,3209.5,3208.5,0.00080016]
[1768330146965,0.92661129,3209.5,3208.5,0.00080016]
[1768330147139,0.92661129,3209.5,3208.6,0.245]
[1768330147345,0.001,3209.5,3208.5,0.00080016]
[1768330147671,0.001,3209.5,3208.6,0.245]
[1768330147874,0.92561129,3209.4,3208.6,0.245]
[1768330148050,0.92561129,3209.4,3208.5,0.24580016]
[1768330148374,3.11588044,3209.4,3208.5,0.24580016]
[1768330148578,3.11682222,3209.5,3208.6,3.11660493]
[1768330148954,3.11675175,3209.5,3208.6,3.11660493]
[1768330149146,3.11675175,3209.5,3208.6,3.76451062]
[1768330149341,0.001,3209.5,3208.6,6.88113469]
[1768330149880,7.15812747,3209.5,3208.6,0.64790569]
[1768330150080,7.15812747,3209.5,3208.5,0.00080016]
[1768330150081,0.92561129,3209.2,3208.5,0.00080016]
[1768330150263,0.92561129,3208.8,3207.8,3.11736465]
[1768330150469,0.92561129,3208.8,3207.7,0.98630851]
[1768330150866,0.00080016,3208.9,3208.2,3.11696974]
[1768330151066,0.00080016,3208.9,3207.7,0.98630851]
[1768330151067,0.00080016,3208.9,3208.3,3.11690349]
[1768330151271,0.00080016,3208.9,3208.3,0.31169035]
[1768330151473,0.00080016,3208.9,3207.7,0.98630851]
[1768330151793,6.23261874,3209.5,3208.5,0.00080024]
[1768330151990,3.11594428,3209.3,3208.5,0.00080024]
[1768330152304,0.92561129,3209.2,3208.5,0.00080024]
[1768330152597,0.92561129,3209.2,3207.7,0.98630851]
[1768330152800,0.92561129,3208.8,3207.7,0.98630851]
[1768330152963,0.92561129,3208.7,3207.7,0.98630851]
[1768330153347,0.92561129,3208.7,3207.7,4.10376206]
[1768330153548,0.92561129,3208.7,3205.6,0.001]
[1768330153783,0.92561129,3208.5,3206.3,3.11883968]
[1768330153995,6.2340253,3208.2,3206.5,3.11866521]
[1768330154293,0.53385929,3208.1,3206.5,3.11866521]
[1768330154492,0.28985929,3208.0,3206.5,3.11866521]
[1768330154690,0.28985929,3208.0,3206.5,6.23733042]
[1768330155090,0.244,3208.1,3206.5,6.23733042]
[1768330155383,0.98436366,3208.1,3206.6,0.65492144]
[1768330155553,0.98436366,3208.1,3206.6,0.65392144]
[1768330155954,0.92561129,3207.8,3206.6,0.65392144]
[1768330156151,0.92687638,3207.6,3205.6,0.001]
[1768330156385,0.92687638,3207.4,3205.6,0.001]
[1768330156595,0.92687638,3207.2,3205.6,0.001]
[1768330156796,0.53363055,3207.1,3205.6,0.001]
[1768330156966,0.28963055,3207.0,3205.6,0.001]
[1768330157167,0.28963055,3207.0,3205.6,0.31306681]
[1768330157369,0.244,3207.1,3205.6,0.001]
[1768330157572,0.92687638,3207.0,3205.6,0.001]
[1768330158268,9.35482863,3206.9,3205.6,0.001]
[1768330158464,6.23655242,3206.9,3205.6,0.001]
[1768330158794,0.244,3206.8,3205.6,0.001]
[1768330159004,0.95988286,3206.7,3205.6,0.001]
[1768330159201,0.92687638,3206.6,3205.6,0.001]
[1768330159710,0.244,3206.5,3205.6,0.001]
[1768330160267,6.23752494,3206.4,3205.6,0.001]
[1768330160495,3.11876247,3206.4,3205.6,0.001]
[1768330160676,3.54772636,3206.4,3205.6,0.001]
[1768330161362,6.66648883,3206.4,3205.6,0.001]
[1768330161872,7.59336521,3206.4,3205.6,0.001]
[1768330162180,6.66648883,3206.4,3205.6,0.001]
[1768330163164,10.71212768,3206.4,3205.6,0.001]
[1768330163372,2.02248915,3206.3,3205.6,0.001]
[1768330164695,1.09561277,3206.3,3205.6,0.001]
[1768330164896,3.36387941,3206.3,3205.6,0.001]
[1768330165391,0.245,3206.3,3205.6,0.001]
[1768330165576,3.36387459,3206.3,3205.6,0.001]
[1768330166407,0.245,3206.3,3205.6,0.001]
[1768330166605,0.245,3206.3,3205.3,0.0008004]
[1768330166606,0.92687638,3206.2,3205.3,0.0008004]
[1768330166804,13.40309358,3206.1,3204.3,0.001]
[1768330167104,0.0008004,3205.7,3204.4,0.31219038]
[1768330167400,0.245,3205.6,3204.4,0.31219038]
[1768330168275,0.2458004,3205.7,3204.4,1.23872149]
[1768330168773,0.2458004,3205.7,3204.7,0.001]
[1768330168774,3.1195408,3205.6,3204.7,0.001]
[1768330169279,6.2390816,3205.6,3204.7,0.001]
[1768330169482,0.6484882,3205.5,3204.7,0.001]
[1768330170219,0.245,3205.4,3204.7,0.001]
[1768330170674,3.36477779,3205.4,3204.7,0.001]
[1768330170874,0.245,3205.4,3204.7,0.001]
[1768330171318,0.0008004,3205.7,3204.7,0.92753111]
[1768330171702,3.11892109,3206.3,3204.7,0.92753111]
[1768330171925,6.23784218,3206.3,3205.3,0.00080048]
[1768330172300,3.11892109,3206.3,3205.3,0.00080048]
[1768330172494,6.23784218,3206.3,3205.3,0.00080048]
[1768330172699,6.8861264,3206.3,3205.3,0.00080048]
[1768330173190,3.76720531,3206.3,3205.3,0.00080048]
[1768330173397,3.11892109,3206.3,3205.3,0.00080048]
[1768330174417,6.23784218,3206.3,3205.3,0.00080048]
[1768330174814,0.96586334,3206.2,3205.3,0.00080048]
[1768330175129,0.92687638,3206.2,3205.3,0.00080048]
[1768330176136,0.91861718,3206.0,3205.3,0.00080048]
[1768330176334,0.91861718,3205.9,3205.3,0.00080048]
[1768330176540,0.245,3205.8,3205.3,0.00080048]
[1768330176905,3.11944349,3205.7,3205.3,0.00080048]
[1768330177139,6.97993756,3205.7,3204.7,0.001]
[1768330177657,0.74105058,3205.7,3204.7,0.001]
[1768330177939,0.00080048,3205.7,3204.7,0.001]
[1768330179633,0.00080048,3205.7,3204.3,6.23166282]
[1768330179833,0.00080048,3205.7,3204.3,3.11085641]
[1768330180029,0.00080048,3205.7,3204.4,0.93151111]
[1768330180233,0.00080048,3205.7,3205.0,0.001]
[1768330180234,1.2034107,3205.7,3205.0,0.001]
[1768330180539,0.91861718,3205.5,3203.9,0.93151111]
[1768330180747,0.31201467,3205.6,3203.3,0.001]
[1768330180748,0.95761387,3205.4,3203.5,0.93151111]
[1768330180910,0.95761387,3205.4,3203.3,0.001]
[1768330181110,0.91861718,3205.2,3203.4,3.12161782]
[1768330181342,0.91861718,3205.0,3203.3,0.001]
[1768330181550,10.27986782,3204.7,3203.3,0.001]
[1768330181849,1.94660396,3204.6,3203.3,0.001]
[1768330182045,0.91861718,3204.5,3203.3,0.001]
[1768330182247,0.245,3204.4,3203.3,0.001]
[1768330182449,1.16361718,3204.4,3203.3,0.001]
[1768330182945,0.91861718,3204.3,3203.3,0.001]
[1768330183514,0.91861718,3204.1,3203.3,0.001]
[1768330183824,0.91861718,3203.9,3202.2,3.12285303]
[1768330184023,0.91861718,3203.7,3202.2,3.12285303]
[1768330184350,0.91861718,3203.7,3202.1,0.00080016]
[1768330184715,0.91861718,3203.5,3202.1,3.12373915]
[1768330185123,0.91861718,3203.5,3202.1,6.24668971]
[1768330185323,0.91861718,3203.5,3202.2,0.62466897]
[1768330185645,4.04029658,3203.5,3202.3,3.12275551]
[1768330186146,0.91861718,3203.4,3202.2,3.74750043]
[1768330186352,0.245,3203.3,3202.2,6.87035346]
[1768330186515,0.245,3203.3,3202.3,0.68711536]
[1768330187854,0.245,3203.3,3202.4,6.245316]
[1768330188756,0.245,3203.3,3202.4,3.122658]
[1768330189253,3.36679589,3203.3,3202.3,3.80984927]
[1768330189418,3.36686502,3203.3,3202.4,0.38098493]
[1768330189617,0.245,3203.3,3202.4,0.38098493]
[1768330189818,0.245,3203.3,3202.5,6.24512098]
[1768330190048,0.245,3203.3,3202.5,3.12256049]
[1768330190215,0.245,3203.3,3202.5,6.24512098]
[1768330190432,3.12131831,3203.8,3202.6,0.66261059]
[1768330190658,6.2426766,3203.8,3202.6,0.66261059]
[1768330190832,6.2426766,3203.8,3202.2,0.93151111]
[1768330190833,0.91861718,3203.7,3201.2,4.0553158]
[1768330191056,0.91861718,3203.5,3201.8,3.12323821]
[1768330191250,0.91861718,3203.5,3201.9,3.12307087]
[1768330191460,0.91861718,3203.5,3202.3,3.12274737]
[1768330191779,6.24336642,3203.4,3201.8,6.24648634]
[1768330191966,0.245,3203.3,3201.8,6.24648634]
[1768330192669,0.245,3203.3,3202.9,0.001]
[1768330193735,3.16090159,3203.2,3202.9,0.001]
[1768330194147,6.28277971,3203.2,3202.9,0.001]
[1768330194348,6.28277971,3203.2,3201.9,3.12312402]
[1768330194553,6.24375624,3203.2,3202.1,0.31319258]
[1768330195161,3.12187812,3203.2,3202.1,0.31319258]
[1768330195369,3.12187812,3203.2,3202.1,1.24470369]
[1768330195552,6.24375624,3203.2,3202.1,0.31319258]
[1768330195753,0.03902469,3203.1,3202.1,0.31319258]
[1768330195964,6.24375624,3203.2,3202.1,0.00080016]
[1768330196171,6.24375624,3203.2,3202.1,3.1236886]
[1768330198581,6.24375624,3203.2,3202.1,0.00080016]
[1768330198582,3.12187812,3203.2,3202.1,0.00080016]
[1768330198796,0.91861718,3204.0,3202.1,0.93231127]
[1768330199095,0.91861718,3203.6,3202.1,0.00080016]
[1768330199245,0.91861718,3203.4,3202.1,0.00080016]
[1768330200074,0.91941734,3202.5,3201.5,3.12352164]
[1768330200373,0.91941734,3202.5,3200.9,3.12410046]
[1768330200587,0.91941734,3202.5,3200.6,17.62433383]
[1768330200588,0.91861718,3202.3,3200.6,17.62433383]
[1768330200893,0.91861718,3202.1,3200.7,1.76243338]
[1768330201177,0.245,3202.0,3201.0,3.1239586]
[1768330201377,0.245,3202.0,3201.0,3.12396202]
[1768330201597,0.00080016,3202.5,3201.1,1.17651111]
[1768330201835,0.91861718,3202.4,3201.0,6.49298576]
[1768330201995,0.91861718,3202.4,3200.4,14.5]
[1768330201996,0.91861718,3202.4,3200.4,15.43151111]
[1768330202176,0.91861718,3202.2,3200.6,3.12435437]
[1768330202377,0.91861718,3202.0,3200.3,0.001]
[1768330202713,3.12314563,3201.9,3200.4,7.18063832]
[1768330202899,3.12314563,3201.9,3200.5,0.93151111]
[1768330203089,3.12314563,3201.9,3200.4,6.24912721]
[1768330203294,6.58310582,3201.9,3200.5,0.64951272]
[1768330203611,9.70625145,3201.9,3200.3,0.001]
[1768330203920,13.74801426,3201.9,3200.3,0.001]
[1768330204215,7.501723,3201.9,3200.3,3.12569022]
[1768330204514,10.62486863,3201.9,3201.4,0.001]
[1768330204678,0.91861718,3201.8,3200.3,0.001]
[1768330204876,9.70625145,3201.9,3200.5,0.97579001]
[1768330204877,0.33681456,3201.9,3200.5,0.97579001]
[1768330205080,6.24609618,3202.0,3200.5,0.97579001]
[1768330205317,9.36914427,3202.0,3200.5,0.97579001]
[1768330205625,13.43608514,3202.0,3200.4,0.31257942]
[1768330205788,0.94389278,3201.9,3200.4,0.31257942]
[1768330205994,1.34360851,3201.8,3200.4,0.31257942]
[1768330206191,2.24695754,3201.8,3200.4,0.31257942]
[1768330206582,6.24668144,3201.7,3200.5,3.12451179]
[1768330206978,6.24668144,3201.7,3200.4,0.31257942]
[1768330206979,9.37002216,3201.7,3200.4,0.31257942]
[1768330207215,6.24668144,3201.7,3200.4,3.43713881]
[1768330207420,0.759029,3201.6,3200.4,0.31257942]
[1768330207587,0.245,3201.5,3200.4,0.31257942]
[1768330208119,0.245,3201.5,3200.3,0.001]
[1768330208316,1.14834903,3201.5,3200.3,0.001]
[1768330208817,9.37090023,3201.4,3200.3,0.001]
[1768330209018,0.90334903,3201.3,3200.3,0.001]
[1768330209946,3.12363341,3201.4,3200.3,0.001]
[1768330210157,6.66003306,3201.4,3200.3,0.001]
[1768330210319,10.6870155,3201.4,3200.3,0.001]
[1768330210642,0.90334903,3201.3,3200.3,0.001]
[1768330210843,6.24765712,3201.2,3200.3,0.001]
[1768330211345,9.37148568,3201.2,3200.3,0.001]
[1768330211552,1.9308325,3201.1,3200.3,0.001]
[1768330211758,0.90334903,3201.0,3200.3,0.001]
[1768330211927,0.245,3200.9,3200.3,0.001]
[1768330212545,0.90334903,3200.8,3200.3,0.001]
[1768330213049,7.15198213,3200.7,3199.1,7.17013259]
[1768330213251,1.61854724,3200.6,3199.2,0.71701326]
[1768330213555,1.61854724,3200.6,3198.9,3.12686144]
[1768330213714,1.61854724,3200.6,3199.1,3.12580376]
[1768330214048,0.90334903,3200.5,3199.1,3.12585276]
[1768330214857,0.90334903,3200.5,3199.1,6.25173191]
[1768330215023,6.24921884,3200.4,3198.9,0.00080008]
[1768330215222,0.245,3200.3,3199.0,0.62531136]
[1768330215522,0.245,3200.3,3199.1,0.91840665]
[1768330217091,3.4088573,3200.3,3199.4,0.001]
[1768330217393,6.53365577,3200.3,3199.4,0.001]
[1768330217590,6.49459694,3200.3,3199.4,0.001]
[1768330217902,3.36979847,3200.3,3199.4,0.001]
[1768330218101,6.49459694,3200.3,3199.4,0.001]
[1768330218797,10.5608304,3200.3,3199.4,0.001]
[1768330218960,0.94143499,3200.2,3199.4,0.001]
[1768330219162,0.94143499,3200.0,3199.4,0.001]
[1768330219388,0.94143499,3199.9,3199.4,0.001]
[1768330219589,1.0316142,3200.0,3199.4,0.001]
[1768330221086,6.2501953,3199.9,3199.4,0.001]
[1768330221281,6.28925902,3199.9,3199.4,0.001]
[1768330221495,10.31672794,3199.9,3199.4,0.001]
[1768330221802,2.3212692,3199.8,3199.4,0.001]
[1768330222507,0.03906616,3199.7,3199.4,0.001]
[1768330222720,0.94143499,3199.7,3198.9,0.00080008]
[1768330223171,6.25078134,3199.6,3198.9,0.00080008]
[1768330223375,9.37617201,3199.6,3198.9,0.00080008]
[1768330223704,1.0317607,3199.5,3198.9,0.00080008]
[1768330224001,0.00080008,3199.3,3198.0,6.25390738]
[1768330224231,0.245,3199.2,3198.0,6.25390738]
[1768330224405,0.245,3199.2,3197.8,3.12714612]
[1768330224605,0.245,3199.2,3197.9,3.12704326]
[1768330224818,0.245,3199.2,3198.0,3.43962305]
[1768330225175,6.2517583,3199.1,3198.0,3.43962305]
[1768330225602,6.2517583,3199.1,3198.0,3.43965756]
[1768330226005,3.3708122,3199.2,3198.0,6.5666119]
[1768330226212,6.4966244,3199.2,3198.0,6.5666119]
[1768330226395,3.3708122,3199.2,3198.1,0.65666119]
[1768330226715,7.43805939,3199.2,3198.1,0.65666119]
[1768330227206,0.94143499,3199.1,3198.1,0.65666119]
[1768330227406,0.94143499,3199.1,3197.9,3.12704709]
[1768330227707,0.94143499,3199.1,3197.8,3.12713002]
[1768330227912,0.94143499,3199.1,3197.9,3.12703008]
[1768330228136,6.4966244,3199.2,3198.1,3.12685147]
[1768330228300,7.43805939,3199.2,3198.2,0.31268515]
[1768330228496,7.43805939,3199.2,3197.4,0.90824467]
[1768330228497,0.94143499,3199.1,3197.4,0.90824467]
[1768330228718,0.94143499,3199.1,3197.7,3.12720341]
[1768330228923,0.94143499,3199.1,3197.4,0.90824467]
[1768330228924,0.94143499,3199.1,3197.6,3.12728893]
[1768330229225,0.94143499,3199.1,3197.4,4.03575979]
[1768330229226,0.94143499,3198.9,3197.7,0.001]
[1768330231330,0.94143499,3198.7,3197.7,0.001]
[1768330231499,0.94143499,3198.5,3196.8,3.12808693]
[1768330232401,0.9805158,3198.5,3196.7,1.99095418]
[1768330232619,0.94143499,3198.0,3196.7,1.08270951]
[1768330232803,0.93264276,3197.9,3196.7,1.08270951]
[1768330233025,0.93264276,3197.9,3196.7,1e-08]
[1768330233026,0.94143499,3197.6,3196.7,1e-08]
[1768330233247,0.245,3197.9,3196.7,0.90824468]
[1768330233445,9.38144973,3197.8,3196.7,1e-08]
[1768330233742,6.25429982,3197.8,3196.7,1e-08]
[1768330233943,6.9042298,3197.8,3196.7,1e-08]
[1768330234802,11.02832243,3197.8,3196.7,1e-08]
[1768330235200,7.90117252,3197.8,3196.7,1e-08]
[1768330235528,0.99694272,3197.7,3196.7,1e-08]
[1768330236524,6.9042298,3197.8,3196.7,1e-08]
[1768330236839,0.38183072,3197.7,3196.7,1e-08]
[1768330237026,3.37206738,3197.9,3196.7,0.97926893]
[1768330237333,6.49913476,3197.9,3196.8,3.12812812]
[1768330237537,10.62314486,3197.9,3196.7,1e-08]
[1768330237733,0.64991348,3197.8,3196.7,1e-08]
[1768330237904,0.64991348,3197.8,3196.7,6.25643079]
[1768330238317,0.64991348,3197.8,3196.7,3.12820481]
[1768330238716,0.64991348,3197.8,3196.7,1e-08]
[1768330238933,2.02455428,3197.7,3196.7,1e-08]
[1768330239114,0.99694272,3197.6,3196.7,1e-08]
[1768330239447,9.38291682,3197.3,3195.8,0.97926892]
[1768330239600,9.38291682,3197.3,3195.5,0.16126035]
[1768330239601,1.24194272,3197.2,3195.5,3.12939138]
[1768330240111,1.24194272,3197.2,3195.5,3.12936497]
[1768330240302,0.99694272,3197.1,3195.0,0.97926892]
[1768330240704,0.99694272,3196.8,3194.9,0.001]
[1768330240904,0.99694272,3196.6,3194.9,0.001]
[1768330241200,0.99694272,3196.6,3195.2,3.12962947]
[1768330241400,0.99694272,3196.4,3194.9,3.13094743]
[1768330241635,9.38526513,3196.5,3194.9,4.10801651]
[1768330241636,0.00080016,3196.1,3194.9,4.10801651]
[1768330241935,0.00080016,3196.1,3195.0,0.97926892]
[1768330242930,0.00080016,3196.1,3195.2,0.97926892]
[1768330243319,0.00080016,3196.1,3195.3,6.25919318]
[1768330243638,0.00080016,3196.1,3195.4,0.72384621]
[1768330244832,0.00080016,3196.1,3195.3,3.37459659]
[1768330245033,0.00080016,3196.1,3195.1,3.12975148]